[Event "VIII Open Semana Santa 2024"]
[Site "San Vicente del Raspeig"]
[Date "2024.03.29"]
[Round "4.13"]
[White "Campora, Daniel H."]
[Black "Makhnev, Denis"]
[Result "0-1"]
[ECO "B06"]
[WhiteElo "2372"]
[BlackElo "2516"]
[Annotator "TA"]
[PlyCount "92"]
[EventDate "2024.03.27"]
[EventType "swiss"]
[EventCountry "ESP"]
[SourceTitle "playchess.com"]
[Source "ChessBase"]
[SourceQuality "1"]
[TimeControl "5400+30"]

{[%evp 10,92,41,29,47,42,37,15,12,8,31,-2,0,-23,-12,-27,0,0,0,0,0,0,0,0,0,0,0,0,0,0,0,-8,-2,-141,-128,-64,-93,-222,-225,-237,-197,-234,-218,-225,-255,-247,-252,-246,-258,-214,-165,-203,-202,-209,-208,-213,-193,-175,-194,-195,-195,-237,-87,-218,-219,-379,-367,-470,-515,-477,-463,-725,-584,-758,-758,-750,-747,-701,-698,-750,-751,-1009,-1138,-1078,-1053]} 1. e4 {[%emt 0:00:02]} d6 2. d4 g6 3. Be3 Bg7 4. Nc3 a6 5. Qd2 b5 {[%emt 0:02:08]} 6. f3 Nf6 7. h4 {[%emt 0:08:56]} h5 {[%emt 0:00:01]} 8. Nh3 {[%emt 0:00:43]} Bxh3 {[%emt 0:03:15] The position is equal.} 9. Rxh3 {[%emt 0:00:09]} Nbd7 {[%emt 0:00:42]} 10. a4 {[%emt 0:00:48]} c6 {[%emt 0:00:51]} 11. Be2 {[%emt 0:01:48]} O-O {[%emt 0:01:37]} 12. Nd1 {[%emt 0:06:32]} e5 {[%emt 0:02:30]} 13. dxe5 {[%emt 0:10:15]} Nxe5 {[%emt 0:01:29]} 14. axb5 {[%emt 0:02:17]} cxb5 {[%emt 0:00:08]} 15. Nc3 {[%emt 0:03:03]} d5 {[%emt 0:00:50]} 16. Nxd5 {[%emt 0:07:18]} Nxd5 {[%emt 0:00:13]} 17. Qxd5 {[%emt 0:00:05]} Qc7 {[%emt 0:01:58]} 18. c3 {[%emt 0:06:07]} Rfd8 {[%emt 0:03:17]} 19. Qc5 {[%emt 0:01:44]} Qd7 {[%emt 0:00:12]} 20. Bd4 {[%emt 0:07:43]} Qe6 {[%emt 0:01:24]} 21. Rd1 {[%emt 0:02:32]} (21. Rh1 $11 {remains equal.}) 21... Rac8 $17 {[%emt 0:00:29]} 22. Qa3 {[%emt 0:01:26]} Nc4 $36 {[%emt 0:01:24][%mdl 2048] Keeping White busy. Black is more active.} 23. Qb3 {[%emt 0:10:36]} (23. Bxc4 $17 Qxc4 24. b3) 23... Bxd4 $19 {[%emt 0:00:41]} 24. cxd4 {[%emt 0:07:27]} Qb6 {[%emt 0:00:18]} 25. Bxc4 {[%emt 0:02:11]} Rxc4 {[%emt 0:00:07]} 26. Ke2 {[%emt 0:02:26]} Rdxd4 {[%emt 0:01:54] aiming for ...Rb4.} (26... Rcxd4 27. Rhh1 $17) 27. Rhh1 {[%emt 0:01:43] [#]} Rb4 $1 {[%emt 0:12:50]} 28. Qc3 {[%emt 0:00:36]} Rdc4 {[%emt 0:00:05]} 29. Qd2 {[%emt 0:01:05]} Qc7 {[%emt 0:00:06]} 30. Rc1 {[%emt 0:03:40] Against Rc2} a5 {[%emt 0:00:12] ...Qe5 would now be deadly.} 31. Rhd1 {[%emt 0:05:50]} Qh2 {[%emt 0:01:17][%csl LRg2,LRh4]} 32. Rxc4 {[%emt 0:01:05]} Qxg2+ {[%emt 0:01:03]} ({Don't do} 32... Rxc4 33. Qg5 $15) 33. Ke3 {[%emt 0:01:09]} Qxd2+ {[%emt 0:00:07]} (33... Rxb2 $2 {is the wrong capture.} 34. Rc8+ Kh7 35. Qxg2 (35. Qxa5 Qf2+ 36. Kf4 Qh2+ 37. Ke3 Qf2+ 38. Kf4 Qxh4+ 39. Ke5 Qe7+ 40. Kf4 Qf6+ 41. Ke3 Rb3+ 42. Rd3 Qg5+ 43. Ke2 Qg2+ 44. Ke3 Qg5+ 45. Ke2 Qg2+ 46. Ke3 Qg1+ 47. Ke2 Qg2+ $11) 35... Rxg2 36. Rd7 $18) 34. Rxd2 {[%emt 0:03:42]} Rxc4 {[%emt 0:00:08][%mdl 4096] Endgame. KR-KR} 35. Kf4 {[%emt 0:02:27]} Kg7 {[%emt 0:00:21]} (35... a4 $19 {has better winning chances. White must now prevent ...Kg7.} 36. Ke5 Kg7) 36. Ke5 {[%emt 0:00:14]} (36. b3 $17 Rb4 37. Rd3) 36... a4 {[%emt 0:05:32]} 37. f4 $2 {[%emt 0:00:51]} (37. Rd5 {is a better defense.} Rb4 38. Rd2) 37... b4 {[%emt 0:00:22]} 38. Rd7 {[%emt 0:00:33]} Rc5+ {[%emt 0:00:11] Black is clearly winning.} 39. Kd4 {[%emt 0:00:37]} Ra5 {[%emt 0:00:06] [#] Strongly threatening ...a3.} 40. Kc4 {[%emt 0:01:10]} (40. Rc7 $142) 40... a3 {[%emt 0:00:06]} 41. Rd1 {[%emt 0:00:31]} axb2 {[%emt 0:00:15] ( -> ...Ra1)} 42. Rb1 {[%emt 0:00:17]} Ra1 {[%emt 0:00:05]} 43. Rxb2 {[%emt 0:00:04]} Rf1 {[%emt 0:00:05]} 44. f5 {[%emt 0:01:30]} Rf4 {[%emt 0:00:14]} 45. fxg6 {[%emt 0:00:21]} Rxe4+ {[%emt 0:00:21]} 46. Kd5 {[%emt 0:00:07]} f5 {[%emt 0:00:08] Weighted Error Value: White=0.35/Black=0.06 (flawless) .  Mistake:       	White=5     	Black=1      Inaccurate:     	White=1     	Black=1      OK:         	White=11    	Black=16     Best:        	White=4     	Black=7} 0-1

[Event "VIII Open Semana Santa 2024"]
[Site "San Vicente del Raspeig"]
[Date "2024.03.29"]
[Round "4.14"]
[White "Tippa, Aswath Srisai"]
[Black "Diaz Camallonga, Carles"]
[Result "1-0"]
[ECO "E16"]
[WhiteElo "1647"]
[BlackElo "2491"]
[Annotator "TA"]
[PlyCount "65"]
[EventDate "2024.03.27"]
[EventType "swiss"]
[EventCountry "ESP"]
[SourceTitle "playchess.com"]
[Source "ChessBase"]
[SourceQuality "1"]
[TimeControl "5400+30"]

{[%evp 17,65,7,22,18,16,21,16,2,0,0,10,0,7,6,12,7,0,0,0,0,0,0,0,0,0,-83,8,-185,-181,-184,-187,-162,-170,-171,-185,-184,-173,-193,-178,-188,0,0,0,0,0,0,29993,29994,29994,29995]} 1. d4 {[%emt 0:20:40]} e6 {[%emt 0:00:07]} 2. c4 {[%emt 0:00:15]} Nf6 {[%emt 0:00:05]} 3. g3 {[%emt 0:00:13]} Bb4+ {[%emt 0:00:07]} 4. Nd2 {[%emt 0:01:12]} O-O {[%emt 0:00:06]} 5. Bg2 {[%emt 0:00:05]} d5 {[%emt 0:00:06]} 6. Ngf3 {[%emt 0:00:04]} b6 {[%emt 0:00:04]} 7. O-O {[%emt 0:00:08]} Bb7 {[%emt 0:00:04]} 8. a3 {[%emt 0:00:09]} Be7 {[%emt 0:00:04]} 9. cxd5 {[%emt 0:00:05]} exd5 {[%emt 0:00:04]} 10. b4 {[%emt 0:00:04]} a5 {[%emt 0:00:11]} 11. b5 {[%emt 0:00:06]} c6 {[%emt 0:00:08]} 12. Qa4 {[%emt 0:00:05] The position is equal.} cxb5 {[%emt 0:04:57]} 13. Qxb5 {[%emt 0:00:06]} Ba6 {[%emt 0:01:07]} 14. Qb2 {[%emt 0:00:07]} Bxe2 {[%emt 0:05:07]} 15. Re1 {[%emt 0:00:05]} Ba6 {[%emt 0:00:03]} 16. Ne5 {[%emt 0:00:03]} Ra7 {[%emt 0:01:45]} 17. Nf1 {[%emt 0:05:11]} Nfd7 {[%emt 0:21:34]} 18. Ne3 {[%emt 0:11:41]} (18. Bxd5 Nxe5 19. Rxe5 Bf6 $17) 18... Nxe5 {[%emt 0:01:07]} 19. dxe5 {[%emt 0:00:08]} d4 {[%emt 0:00:10]} 20. Nf5 {[%emt 0:01:48] Nxe7+ is the strong threat.} Bc5 {[%emt 0:00:04]} 21. Qd2 {[%emt 0:00:52]} (21. h4 $11) 21... Bb7 {[%emt 0:29:01] [#]} ({Black should play} 21... Nd7 $1 $17 22. Qd1 (22. Nxd4 $2 Nxe5 23. Nf5 Nd3 $19) 22... f6 (22... d3 23. Qg4 $11) 23. Nxd4 fxe5 (23... Nxe5 24. Ne6 $11)) 22. Nxg7 $2 {[%emt 0:26:01]} Kxg7 $19 {[%emt 0:01:07]} 23. Qh6+ {[%emt 0:02:16]} Kh8 {[%emt 0:00:12] aiming for ...Bxg2.} 24. Bg5 {[%emt 0:05:02] Threatening mate with Bf6+.} Be7 {[%emt 0:00:04]} 25. Bf6+ {[%emt 0:01:31]} Bxf6 {[%emt 0:00:05]} 26. exf6 {[%emt 0:00:07]} Rg8 {[%emt 0:00:03] Prevents Qg7+} 27. Re7 {[%emt 0:01:09][%cal Oe7f7] [#]} Bxg2 $1 {[%emt 0:02:34]} 28. Rxa7 {[%emt 0:00:08] [#]} Bd5 {[%emt 0:07:18]} ({Better is} 28... Qd5 $1 $19 {And now ...d3 would win.} 29. Re1 Bh1) 29. Re7 $40 {[%emt 0:01:04][%mdl 128] White is up to no good.} d3 {[%emt 0:15:37] Threatens to win with ...Bb3.} (29... Nc6 30. Rae1 Qf8 31. Qh5) 30. Rae1 $1 {[%emt 0:01:35][%cal Oe7e8] Re8! would kill now. Chess con chili.} Be6 $1 {[%emt 0:01:43]} 31. h3 {[%emt 0:04:59] Hoping for R1xe6.} ({But not} 31. R1xe6 $2 d2 $19) 31... Rg6 $2 {[%emt 0:01:27][%mdl 8192] [#]} (31... d2 $11 32. Rd1 Rxg3+ (32... Qd4 33. Re8) 33. fxg3 Qd4+ 34. Kf1 (34. Kg2 Bd5+ 35. Kf1 Qd3+ 36. Re2 Qf3+ 37. Kg1 Qxg3+ 38. Kf1 Qf3+ 39. Kg1 Qg3+ 40. Kf1 Qf3+ 41. Kg1 Qg3+ $11) 34... Qc4+ 35. Kf2 Qd4+ 36. Qe3 Qxf6+ 37. Qf4 Qxe7 38. Qxb8+ Kg7 39. Qe5+ (39. Rxd2 Qxa3 40. Qxb6 Bxh3 $11) 39... f6) 32. R1xe6 $1 {[%emt 0:00:18]} Qg8 {[%emt 0:03:40] [#]} 33. Re8 $1 {[%emt 0:00:23] Weighted Error Value: White=0.21 (precise) /Black=0.41.  Loses game:     	White=1     	Black=1      Missed win:     	---       	Black=1      Mistake:       	White=1     	Black=1      OK:         	White=8     	Black=10     Best:        	White=4     	Black=3      Strong:       	White=2     	Black=2} 1-0

[Event "VIII Open Semana Santa 2024"]
[Site "San Vicente del Raspeig"]
[Date "2024.03.29"]
[Round "4.15"]
[White "Garcia Martin, Marta"]
[Black "Ceres, Dragos"]
[Result "0-1"]
[ECO "B92"]
[WhiteElo "2356"]
[BlackElo "2482"]
[Annotator "TA"]
[PlyCount "78"]
[EventDate "2024.03.27"]
[EventType "swiss"]
[EventCountry "ESP"]
[SourceTitle "playchess.com"]
[Source "ChessBase"]
[SourceQuality "1"]
[TimeControl "5400+30"]

{[%evp 23,78,0,29,13,31,27,78,66,75,55,82,80,122,108,131,34,85,41,80,76,82,52,86,95,181,110,152,157,192,200,188,151,235,77,106,83,93,106,66,0,0,0,0,0,0,0,0,0,0,-110,-110,-125,0,-1095,-1081,-29975,-29976]} 1. e4 {[%emt 0:00:30]} c5 {[%emt 0:00:30]} 2. Nf3 {[%emt 0:00:30]} d6 {[%emt 0:00:30]} 3. d4 {[%emt 0:00:30]} cxd4 {[%emt 0:00:30]} 4. Nxd4 {[%emt 0:00:30]} Nf6 {[%emt 0:00:30]} 5. Nc3 {[%emt 0:00:30]} a6 {[%emt 0:00:30]} 6. Be2 {[%emt 0:00:30]} e5 {[%emt 0:00:30]} 7. Nb3 {[%emt 0:00:30]} Be7 {[%emt 0:00:30]} 8. Be3 {[%emt 0:00:30]} Be6 {[%emt 0:00:30]} 9. Nd5 {[%emt 0:00:30]} Nbd7 {[%emt 0:00:30]} 10. Qd3 {[%emt 0:00:30]} Bxd5 {[%emt 0:00:30]} 11. exd5 {[%emt 0:04:28]} O-O {[%emt 0:00:00]} 12. O-O {[%emt 0:05:51]} Re8 {[%emt 0:00:00]} 13. a4 {[%emt 0:02:23][%cal Ba2a4,Ba4a5][%mdl 32]} Qc7 {[%emt 0:02:09]} 14. a5 {[%emt 0:16:14]} Rac8 {[%emt 0:00:41]} (14... Nc5 $11 15. Qc4 Rac8) 15. c4 $16 {[%emt 0:01:04] White is better.} Bf8 {[%emt 0:00:40]} 16. Nd2 {[%emt 0:02:21]} g6 {[%emt 0:00:42]} 17. b4 {[%emt 0:00:52]} h5 {[%emt 0:01:46]} 18. Rac1 {[%emt 0:18:16]} Qd8 {[%emt 0:00:32]} 19. Nb3 {[%emt 0:00:50]} ({Better is} 19. f3 $16) 19... e4 {[%emt 0:01:11]} (19... Ng4 $14) 20. Qd1 {[%emt 0:08:15]} Ne5 {[%emt 0:04:57]} 21. h3 {[%emt 0:01:49]} Qd7 {[%emt 0:01:11]} 22. Qd2 {[%emt 0:05:27]} Kh7 {[%emt 0:15:41]} 23. Rfd1 {[%emt 0:00:22]} Ng8 {[%emt 0:00:58]} (23... Qa4 $16) 24. b5 {[%emt 0:04:44]} (24. c5 $18) 24... axb5 {[%emt 0:03:39]} 25. cxb5 {[%emt 0:00:04]} Bh6 {[%emt 0:00:49]} 26. Bxh6 {[%emt 0:08:30]} Nxh6 {[%emt 0:00:05]} 27. Nd4 {[%emt 0:04:09]} Rc5 {[%emt 0:04:01]} (27... Nf5 $16 {was called for.}) 28. Rxc5 $2 {[%emt 0:01:46]} (28. a6 $18 {is more deadly.}) 28... dxc5 {[%emt 0:00:05]} 29. Nb3 {[%emt 0:00:02]} Qd6 {[%emt 0:03:00]} 30. Qc3 {[%emt 0:02:40]} Nd7 {[%emt 0:02:29][%cal Oe4e3]} 31. b6 {[%emt 0:03:44]} (31. Nd2 $1 $14) 31... e3 $11 {[%emt 0:02:29] [#] And now ...exf2+ would win.} 32. Bb5 {[%emt 0:03:40]} exf2+ {[%emt 0:00:52]} 33. Kxf2 {[%emt 0:00:04]} Nf6 {[%emt 0:02:41]} 34. Kg1 $1 {[%emt 0:00:51]} ({Don't play} 34. Nxc5 Rc8) 34... Ne4 {[%emt 0:00:06]} 35. Qf3 {[%emt 0:02:07]} Re5 {[%emt 0:02:08][%cal Oh6f5] ...Nf5! is the strong threat.} 36. Bc4 {[%emt 0:01:40]} (36. Bd3 $11 Ng5 37. Qg3 (37. Qxh5 $2 {too greedy.} c4 $19)) 36... Nf5 $17 {[%emt 0:00:26]} 37. Qf4 {[%emt 0:01:09] Prevents Ng5.} Neg3 {[%emt 0:01:55] Excellent horsemanship.} ({Black should try} 37... Nf6 $17 {[%cal Oe5e1] Hoping for ...Re1+!} 38. Rf1 Nxd5 39. Bxd5 Qxd5) 38. Kh2 $2 {[%emt 0:00:25][%mdl 8192]} (38. Qf2 $11) 38... h4 $19 {[%emt 0:01:00][%cal Oe5e1] ( -> ...Re1!)} 39. Nd2 {[%emt 0:00:38] [#]} Re1 $3 {[%emt 0:01:10][%mdl 512] Never resign too early!   Weighted Error Value: White=0.67/Black=0.29 (precise) .  Loses game:     	White=1     	---        Mistake:       	White=5     	Black=5      Inaccurate:     	White=3     	Black=6      OK:         	White=8     	Black=8      Best:        	White=1     	Black=2      Strong:       	White=1     	---} 0-1

[Event "VIII Open Semana Santa 2024"]
[Site "San Vicente del Raspeig"]
[Date "2024.03.29"]
[Round "4.16"]
[White "Solodovnichenko, Yuri"]
[Black "Labiano Hernandez, Juan"]
[Result "1-0"]
[ECO "C48"]
[WhiteElo "2481"]
[BlackElo "2362"]
[Annotator "TA"]
[PlyCount "77"]
[EventDate "2024.03.27"]
[EventType "swiss"]
[EventCountry "ESP"]
[SourceTitle "playchess.com"]
[Source "ChessBase"]
[SourceQuality "1"]
[TimeControl "5400+30"]

{[%evp 9,77,3,5,0,0,0,0,0,0,-6,16,11,7,2,6,6,-9,0,0,0,1,0,11,9,33,22,61,60,104,115,125,133,132,133,155,130,168,156,191,177,187,185,265,216,303,270,320,320,290,265,317,252,367,379,379,371,462,462,456,459,533,483,469,483,483,483,475,475,533,525]} 1. e4 {[%emt 0:00:30]} e5 {[%emt 0:00:30]} 2. Nf3 {[%emt 0:00:30]} Nc6 {[%emt 0:00:30]} 3. Nc3 {[%emt 0:00:30]} Nf6 {[%emt 0:00:30]} 4. Bb5 {[%emt 0:00:30]} Nd4 5. O-O {[%emt 0:01:00]} c6 {[%emt 0:11:32]} 6. Bd3 {[%emt 0:00:21]} Nxf3+ {[%emt 0:03:27]} 7. Qxf3 {[%emt 0:00:06]} Bd6 {[%emt 0:07:24]} 8. Bc4 {[%emt 0:03:49] The position is equal.} O-O {[%emt 0:00:08]} 9. d3 {[%emt 0:04:31]} Re8 {[%emt 0:07:40]} (9... b5 $5 10. Bb3 $8 b4 $14) 10. Bg5 {[%emt 0:02:11][%cal Bc1g5,Bg5h4,Bh4g3,Bg3e5,Be5c3][%mdl 32]} Be7 {[%emt 0:00:28]} 11. Nd1 {[%emt 0:06:04]} h6 {[%emt 0:08:10]} 12. Bh4 {[%emt 0:05:14]} g5 {[%emt 0:06:40]} 13. Bg3 {[%emt 0:00:20]} d5 {[%emt 0:00:14]} 14. exd5 {[%emt 0:00:15]} Bg4 {[%emt 0:00:10]} 15. Qe3 {[%emt 0:00:07] Hoping for dxc6.} Nxd5 {[%emt 0:00:10]} 16. Bxd5 {[%emt 0:03:36]} Qxd5 {[%emt 0:00:46]} 17. Nc3 {[%emt 0:02:49]} Qe6 {[%emt 0:08:57]} 18. Bxe5 {[%emt 0:09:57]} Bb4 {[%emt 0:01:38] White now steadily converts the win.} 19. Rae1 {[%emt 0:01:24]} Bxc3 {[%emt 0:06:21]} 20. Bxc3 {[%emt 0:02:03]} Qxe3 {[%emt 0:00:17]} 21. fxe3 {[%emt 0:00:45]} Re6 {[%emt 0:00:23]} 22. e4 {[%emt 0:04:53]} Bh5 {[%emt 0:03:22] Black is weak on the dark squares} 23. a4 {[%emt 0:06:02]} Bg6 {[%emt 0:01:15]} 24. g4 {[%emt 0:03:40]} c5 {[%emt 0:00:59]} 25. b3 {[%emt 0:00:22]} b6 {[%emt 0:00:30]} (25... Rc8 $142 26. h4 gxh4) 26. Bf6 {[%emt 0:02:12]} Rc8 {[%emt 0:01:34]} (26... Rae8 $142 27. Re3 Rd6) 27. Re3 $18 {[%emt 0:00:35]} Rcc6 {[%emt 0:03:57]} 28. e5 {[%emt 0:00:17]} Kh7 {[%emt 0:06:42]} 29. Rh3 {[%emt 0:03:30]} a6 {[%emt 0:00:19]} 30. Re1 {[%emt 0:04:56]} ({Don't do} 30. Bxg5 Rxe5 31. Bxh6 (31. Rxh6+ Kg7 $18) 31... Kg8) 30... Rxf6 {[%emt 0:02:35]} (30... Re8 $142) 31. exf6 {[%emt 0:00:05]} Rxf6 {[%emt 0:00:04][%mdl 4096] Endgame. KRR-KRB} 32. Re5 {[%emt 0:03:41]} Rf4 {[%emt 0:01:02]} 33. Rxg5 {[%emt 0:01:13] White is clearly winning.} f5 {[%emt 0:01:29]} 34. Rh4 {[%emt 0:02:46]} ({Not} 34. gxf5 Bxf5 35. Rhh5 Bg6 $16) 34... b5 {[%emt 0:09:08]} 35. axb5 {[%emt 0:01:32]} axb5 {[%emt 0:00:01]} 36. gxf5 {[%emt 0:00:27][%cal Bg4f5,Bf5g6][%mdl 32]} Rxh4 {[%emt 0:00:14]} 37. fxg6+ {[%emt 0:00:05]} ({Weaker is} 37. Rxg6 c4 38. dxc4 bxc4 $18) 37... Kg7 {[%emt 0:00:12]} 38. Rxc5 {[%emt 0:00:05]} b4 {[%emt 0:00:05]} 39. Rc4 {[%emt 0:00:12] Prevents Rg4+.   Weighted Error Value: White=0.09 (flawless) /Black=0.27 (precise) .  Mistake:       	---       	Black=3      Inaccurate:     	---       	Black=2      OK:         	White=14    	Black=9      Best:        	White=2     	Black=2} 1-0

[Event "VIII Open Semana Santa 2024"]
[Site "San Vicente del Raspeig"]
[Date "2024.03.29"]
[Round "4.18"]
[White "Shuvalova, Polina"]
[Black "Boder, Jan"]
[Result "1-0"]
[ECO "C24"]
[WhiteElo "2455"]
[BlackElo "2328"]
[Annotator "TA"]
[PlyCount "89"]
[EventDate "2024.03.27"]
[EventType "swiss"]
[EventCountry "ESP"]
[SourceTitle "playchess.com"]
[Source "ChessBase"]
[SourceQuality "1"]
[TimeControl "5400+30"]

{[%evp 11,89,30,57,46,44,47,49,48,43,45,65,58,68,58,60,70,66,47,65,69,98,95,127,92,115,111,147,152,181,183,166,170,183,158,145,149,195,164,175,166,169,154,158,174,268,263,258,218,236,240,243,246,245,243,406,253,246,250,752,737,753,749,844,716,922,911,918,914,1604,1337,1859,1024,2781,1161,9978,7849,29971,29971,29967,668]} 1. e4 {[%emt 0:00:02]} e5 {[%emt 0:05:26]} 2. Nf3 {[%emt 0:00:30]} Nc6 {[%emt 0:00:30]} 3. Bc4 {[%emt 0:00:30]} Nf6 {[%emt 0:00:30][%cal Bg8f6,Bf6d5,Bd5b6][%mdl 32]} 4. d3 {[%emt 0:00:30]} d5 {[%emt 0:00:30]} 5. exd5 {[%emt 0:00:30]} Nxd5 {[%emt 0:00:30]} 6. O-O {[%emt 0:00:30]} Nb6 {[%emt 0:00:30]} 7. Bb5 {[%emt 0:00:30]} Bd6 {[%emt 0:00:30] [#]} 8. Nxe5 $1 {[%emt 0:00:30]} Bxe5 {[%emt 0:00:30]} 9. Bxc6+ {[%emt 0:00:30] White is slightly better.} bxc6 10. Re1 {[%emt 0:00:00]} Qe7 {[%emt 0:01:14]} 11. Kh1 {[%emt 0:00:37]} O-O {[%emt 0:04:16]} 12. f4 {[%emt 0:00:24]} f6 {[%emt 0:02:09]} 13. fxe5 {[%emt 0:00:06]} fxe5 {[%emt 0:01:15]} 14. Nc3 {[%emt 0:00:09][%cal Bb1c3,Bc3e4,Be4g3,Bg3f1,Bf1h2][%mdl 32]} Bf5 {[%emt 0:07:24]} 15. b3 {[%emt 0:07:45]} Qh4 {[%emt 0:16:20]} 16. Ne4 {[%emt 0:05:19]} (16. Rxe5 $6 Qd4 17. Qe1 Bxd3 $17) 16... Bg4 {[%emt 0:10:08]} 17. Bg5 {[%emt 0:06:47]} Qh5 {[%emt 0:10:17]} 18. Qd2 {[%emt 0:00:29]} Nd5 {[%emt 0:00:14]} 19. Ng3 {[%emt 0:03:58][%csl LRe5,LRh5]} Qg6 {[%emt 0:13:53]} 20. Rxe5 {[%emt 0:01:25]} Rae8 {[%emt 0:01:30]} 21. Rxe8 {[%emt 0:02:37]} Rxe8 {[%emt 0:00:16]} 22. Re1 {[%emt 0:01:20]} h6 {[%emt 0:01:05] Hoping for ...Rxe1+.} 23. Be3 {[%emt 0:01:54]} h5 {[%emt 0:05:59]} (23... Nxe3 $16 {was worth a try.} 24. Rxe3 Rxe3 25. Qxe3 Bd1) 24. Nf1 {[%emt 0:12:40]} a6 {[%emt 0:03:37]} 25. h3 {[%emt 0:02:59]} Bd7 {[%emt 0:02:06]} 26. Bd4 {[%emt 0:01:19]} Rf8 {[%emt 0:05:02]} 27. Nh2 {[%emt 0:01:24]} c5 {[%emt 0:07:14]} (27... Qg3 $142 28. Rf1 Rxf1+ 29. Nxf1 Qg6) 28. Bxc5 $18 {[%emt 0:00:38]} Rf5 {[%emt 0:00:07]} 29. Bd4 {[%emt 0:09:37]} Bc6 {[%emt 0:00:28]} 30. Be5 {[%emt 0:00:22] Prevents Nf4} Rxe5 {[%emt 0:01:26]} 31. Rxe5 {[%emt 0:00:06]} Nf4 {[%emt 0:00:02]} 32. Re2 {[%emt 0:06:25]} (32. Qxf4 $2 Qxg2#) 32... Qg3 {[%emt 0:00:15] [#]} (32... Nxe2 {might work better.} 33. Qxe2 Qf5) 33. d4 $1 {[%emt 0:01:06] Threatens to win with Rf2.} Nxe2 {[%emt 0:01:15]} 34. Qxe2 {[%emt 0:00:32]} Qxh3 $2 {[%emt 0:00:09][%mdl 4096] Endgame. KQB-KQN} (34... Qf4 35. Qxa6 (35. Qxh5 {is a self mate.} Qc1+) 35... Qc1+ 36. Nf1 Bd7 37. Qa8+ Kf7) 35. Qc4+ {[%emt 0:01:55]} (35. Qxa6 $2 Qxg2#) 35... Kh7 {[%emt 0:00:17]} 36. Qxc6 {[%emt 0:00:07]} Qh4 {[%emt 0:00:01]} 37. Qc3 {[%emt 0:00:14]} ({Weaker is} 37. Qxc7 Qe1+ $18) 37... c6 {[%emt 0:01:29]} 38. Kg1 {[%emt 0:00:21]} ({Inferior is} 38. Qxc6 Qe1+ $11) 38... Qf6 {[%emt 0:00:12]} 39. Nf3 {[%emt 0:00:07]} g5 {[%emt 0:00:36]} 40. Qc5 {[%emt 0:00:05]} Kh6 {[%emt 0:00:20]} 41. Qe5 {[%emt 0:00:35]} Qd8 {[%emt 0:00:17]} 42. Qe3 {[%emt 0:00:37]} Qd5 {[%emt 0:00:13]} 43. c4 {[%emt 0:00:02]} Qf5 {[%emt 0:00:07]} 44. Qe5 {[%emt 0:00:30]} Qg6 {[%emt 0:00:48]} 45. Qh8+ {[%emt 0:00:09] Weighted Error Value: White=0.15 (very precise) /Black=0.28 (precise) .  Mistake:       	---       	Black=4      Inaccurate:     	White=1     	Black=3      OK:         	White=15    	Black=7      Best:        	White=4     	Black=2} 1-0

[Event "VIII Open Semana Santa 2024"]
[Site "San Vicente del Raspeig"]
[Date "2024.03.29"]
[Round "4.19"]
[White "Vassallo Barroche, Mauricio"]
[Black "Ghazarian, Kirk"]
[Result "1/2-1/2"]
[ECO "A07"]
[WhiteElo "2354"]
[BlackElo "2454"]
[Annotator "TA"]
[PlyCount "76"]
[EventDate "2024.03.27"]
[EventType "swiss"]
[EventCountry "ESP"]
[SourceTitle "playchess.com"]
[Source "ChessBase"]
[SourceQuality "1"]
[TimeControl "5400+30"]

{[%evp 9,76,4,8,5,10,3,4,6,7,0,0,0,0,0,0,0,0,0,0,-11,-6,-12,-9,-19,-8,-43,-36,-41,-13,-7,0,-8,29,0,20,0,24,12,18,8,7,1,14,0,0,-2,-3,0,0,-16,0,0,0,-22,0,-9,-8,-33,0,0,0,-4,0,0,0,0,0,0,0]} 1. Nf3 {[%emt 0:00:30]} d5 {[%emt 0:00:30]} 2. g3 {[%emt 0:00:30]} b6 {[%emt 0:00:30]} 3. Bg2 {[%emt 0:00:30]} Bb7 {[%emt 0:00:30]} 4. O-O {[%emt 0:00:30]} e6 {[%emt 0:00:30]} 5. c4 {[%emt 0:00:30]} dxc4 {[%emt 0:00:30]} 6. Qa4+ {[%emt 0:00:30]} Nd7 {[%emt 0:00:30]} 7. Qxc4 {[%emt 0:00:30]} Ngf6 {[%emt 0:00:30]} 8. b3 {[%emt 0:00:30]} Be7 {[%emt 0:00:30]} 9. Bb2 {[%emt 0:00:30]} c5 {[%emt 0:00:30]} 10. d3 {[%emt 0:00:30]} O-O {[%emt 0:00:30]} 11. Nbd2 {[%emt 0:00:30]} a6 {[%emt 0:00:30]} 12. Qc2 {[%emt 0:00:30]} b5 {[%emt 0:00:30]} 13. Rac1 {[%emt 0:00:30]} Qb6 {[%emt 0:00:30]} 14. Qb1 {[%emt 0:00:30]} Rac8 {[%emt 0:20:15]} 15. Rfe1 {[%emt 0:37:45]} Rfd8 {[%emt 0:02:10]} 16. Nf1 {[%emt 0:03:27]} h6 {[%emt 0:02:29]} 17. e4 {[%emt 0:01:36]} Nb8 {[%emt 0:04:29]} 18. Ne5 {[%emt 0:01:56]} Nc6 {[%emt 0:04:20]} 19. Nxc6 {[%emt 0:00:07]} Bxc6 {[%emt 0:01:35]} 20. Ne3 {[%emt 0:00:16]} Rd7 {[%emt 0:06:39]} 21. h4 {[%emt 0:03:01]} Bb7 {[%emt 0:02:03]} 22. Bf1 {[%emt 0:01:00]} Rcd8 {[%emt 0:01:54]} 23. Be5 {[%emt 0:03:47]} Ne8 {[%emt 0:04:44]} 24. Qc2 {[%emt 0:04:51]} Rc8 {[%emt 0:04:47]} 25. Qb2 {[%emt 0:03:04]} Qd8 {[%emt 0:06:14]} 26. Qc2 {[%emt 0:03:10]} Bf6 {[%emt 0:02:03]} 27. Ng4 {[%emt 0:02:00]} Bxe5 {[%emt 0:00:57]} 28. Nxe5 {[%emt 0:00:02]} Rdc7 {[%emt 0:00:17]} 29. a3 {[%emt 0:04:00]} Qf6 {[%emt 0:07:35]} 30. Qb2 {[%emt 0:03:29]} Nd6 {[%emt 0:01:00]} 31. Qa1 {[%emt 0:00:06]} a5 {[%emt 0:06:41]} 32. Rc2 {[%emt 0:02:35]} Qe7 {[%emt 0:00:30]} 33. Bg2 {[%emt 0:00:30]} c4 {[%emt 0:00:30]} 34. dxc4 {[%emt 0:00:30] The position is equal.} bxc4 {[%emt 0:00:30]} 35. bxc4 {[%emt 0:00:30]} Nxc4 {[%emt 0:00:30]} 36. Nxc4 {[%emt 0:00:30]} Rxc4 {[%emt 0:00:30]} 37. Rxc4 {[%emt 0:00:30]} Rxc4 {[%emt 0:00:30]} 38. Rc1 {[%emt 0:00:30]} Qc7 {[%emt 0:00:30] Weighted Error Value: White=0.07 (flawless) /Black=0.07 (flawless) .  Inaccurate:     	White=2     	Black=3      OK:         	White=11    	Black=13} 1/2-1/2